Workbook

Sheet Sākums
A2: Darba sākšana ar formulām
A3: Kad būsit izpildījis dažas darbības, būsit gatavs formulu un funkciju veidošanai programmā Excel — pasaulē visjaudīgākajā izklājlapu programmā.
A4: Lai atgrieztos sākumā, nospiediet taustiņu kombināciju CTRL+HOME. Lai sāktu darbu ar ceļvedi, nospiediet taustiņu kombināciju CTRL+ PAGE DOWN.

Sheet Pamati
A1: Pamati: aritmētiskās darbības ar Excel
A2: Programmā Excel varat saskaitītu, atņemtu, reizinātu un dalītu, neizmantojot iebūvētās funkcijas. Ir jāizmanto tikai daži pamatoperatori: +, -, *, /. Visas formulas sākas ar vienādības zīmi (=). | C2: Izmantojamie skaitļi: | E2: Darbība: | F2: Formulas: | G2: Atbildes:
A3: Lai saskaitītu, atlasiet šūnu F3, rakstiet =C3+C4, pēc tam nospiediet taustiņu Enter. | C3: 1 | E3: Saskaitīšana (+) | G3: =C3+C4 -> 3
A4: Lai atņemtu, atlasiet šūnu F4, rakstiet =C3-C4, pēc tam nospiediet taustiņu Enter. | C4: 2 | E4: Atņemšana (-) | G4: =C3-C4 -> -1
A5: Lai reizinātu, atlasiet šūnu F5, rakstiet =C3*C4, pēc tam nospiediet taustiņu Enter. | E5: Reizināšana (*) | G5: =C3*C4 -> 2
A6: Lai dalītu, atlasiet šūnu F6, rakstiet C3/C4, pēc tam nospiediet taustiņu Enter. | E6: Dalīšana (/) | G6: =C3/C4 -> 0.5
A7: Izmēģiniet: mainiet skaitļus šūnā C3 un C4, un vērojiet, kā automātiski mainās formulas rezultāti. | E7: Kāpināšana (^) | G7: =C3^C4 -> 1
A8: PAPILDIESPĒJA Vērtību varat kāpināt, izmantojot simbolu jumtiņa (^) simbolu, piemēram, =A1^A2. Ievadiet to ar taustiņu kombināciju Shift+6. Šūnā F7 ievadiet =C3^C4.
A9: Uz leju, lai uzzinātu vairāk
A10: Nākamā darbība
A11: Vēl par formulām, šūnām un diapazoniem
A12: Excel sastāv no atsevišķām šūnām, kuras ir sagrupētas rindās un kolonnās. Rindas ir numurētas, bet kolonnas ir apzīmētas ar burtiem. Ir vairāk nekā 1 miljons rindu un 16 000 kolonnu, un tajās visās varat ievietot formulas.
A13: Formulās var būt atsauces uz šūnām, šūnu atsauču diapazoni, operatori un konstantes. Lūk, formulu piemēri: =A1+B1 =10+20 =SUM(A1:A10)
A14: Ievērosit, ka trešajā piemērā ir izmantota funkcija SUM. Funkcija ir iepriekšizveidota komanda, kas paņem vērtību vai vērtības, tās aprēķina noteiktā veidā un atgriež rezultātu. Piemēram, funkcija SUM ņem jūsu norādītās šūnu atsauces vai diapazonus un tos saskaita kopā. Šajā piemērā tā ņem šūnas no A1 līdz A10 un saskaita kopā. Programmā Excel ir vairāk nekā 400 funkciju, ar kurām varat iepazīties cilnē Formulas.
A15: Formulas, kurās ir funkcijas, sākas ar vienādības zīmi, pēc tās ir funkcijas nosaukums un tās argumenti (vērtības, ko funkcija izmanto aprēķinos), kas ielikti iekavās.
A16: Formulu apstiprina, nospiežot taustiņu Enter. Kad to izdarāt, formula tiek aprēķināta un šūnā parādīts rezultāts. Pati formula ir redzama formulu joslā zem lentes vai, nospiežot taustiņu F2, varat atvērt rediģēšanas režīmu, kur šūnā ir redzama formula. Vēlreiz nospiediet taustiņu Enter, lai pabeigtu formulu un aprēķinātu rezultātu.
A17: Dažu formulu skaidrojumi
A18: =10+20 ir formula, kur 10 un 20 ir konstantes, bet simbols + ir operators.
A19: =SUM(A1:A10) ir formula, kur SUM ir funkcijas nosaukums, formulas argumenti ir ielikti iekavās, bet A1:A10 ir funkcijas šūnu diapazons.
A20: =SUM(A1:A10;C1:C10) ir formula, kur SUM ir funkcijas nosaukums, formulas argumenti ir ielikti iekavās, bet A1:A10 ir funkcijas šūnu diapazons.=SUM(A1:A10) ir formula, kur SUM ir funkcijas nosaukums, formulas argumenti ir ielikti iekavās, bet A1:A10;C1:C10 ir funkcijas šūnu diapazoni, kas atdalīti ar komatu.
A21: NODERĪGA INFORMĀCIJA Konstantes ir vērtības, ko ievadāt šūnās un formulās. Ja =10+20 aprēķina rezultāts ir tāds pats kā =A1+B1 rezultāts, konstantes nav laba izvēle. Kāpēc? Tāpēc, ka konstanti nevar ērti ieraudzīt, ja vien neatlasa šūnu un to neatrod. Līdz ar to vēlāk tas var sagādāt grūtības nomainīt. Daudz vieglāk ir ievadīt konstantes šūnās, kur tās var viegli pielāgot, un formulās ievietot atsauces uz tām. Piemēram: Zemāk atlasiet dzelteno šūnu ar 12. Redzēsit, ka esam izmantojuši funkciju SUM ar šūnu diapazonu. Mēs nerakstījām “4” vai “8” tieši formulā.
A22: Atpakaļ
A23: Tālāk
A24: Papildinformācija tīmeklī
A25: Programma Excel kā kalkulators
A26: Programmas Excel formulu apskats
A27: Excel funkcijas (pa kategorijām)
A28: Excel funkcijas (alfabēta secībā)
A29: Bezmaksas Excel apmācība tiešsaistē
J40: Vērtības
J41: 4
J42: 8
J43: =SUM(J41:J42) -> 12

Sheet Iepazīšanās ar funkcijām
A1: Iepazīšanās ar funkcijām
A2: Funkcijas sniedz iespēju veikt dažādas darbības, piemēram, izpildīt matemātiskas darbības, uzmeklēt vērtības vai pat aprēķināt datumus un laikus. Izmēģināsim vairākus veidus, kā saskaitīt vērtības, izmantojot funkciju SUM. | C2: Augļi | D2: Daudzums | F2: Gaļa | G2: Daudzums
A3: Zem sadaļas Augļi kolonnas Daudzums (šūnā D7) ievadiet =SUM(D3:D6) vai ierakstiet =SUM(, pēc tam ar peli atlasiet šo diapazonu un nospiediet taustiņu Enter. Tā tiks summētas vērtības, kas atrodas šūnās D3, D4, D5 un D6. Atbildei jābūt 170. | C3: Āboli | D3: 50 | F3: Liellopu gaļa | G3: 50
A4: Tagad Izmēģināsim automātisko summēšanu. Atlasiet šūnu zem šīs kolonnas sadaļā Gaļa (šūnu G7), pēc tam dodieties uz cilni Formulas > Automātiskā summēšana > atlasiet SUM. Redzēsit, ka programma Excel automātiski jūsu vietā ievada formulu. Nospiediet taustiņu Enter, lai apstiprinātu. Līdzeklī Automātiskā summēšana ir visas biežāk izmantotās funkcijas. | C4: Apelsīni | D4: 20 | F4: Vistas gaļa | G4: 30
A5: Lūk, arī ērti īsinājumtaustiņi. Atlasiet šūnu D15, pēc tam nospiediet Alt *, pēc tam taustiņu Enter. Tas automātiski ievada SUM. | C5: Banāni | D5: 60 | F5: Cūkgaļa | G5: 10
A6: Uz leju, lai uzzinātu vairāk | C6: Citroni | D6: 40 | F6: Zivis | G6: 50
A7: PAPILDIESPĒJA Izmēģiniet funkciju COUNT, izmantojot kādu no jau izmēģinātajām metodēm. Funkcija COUNT saskaita šūnas diapazonā, kas satur skaitļus. | C7: SUM > | D7: =SUM(D3:D6) -> 170 | F7: SUM >
A8: Nākamā darbība
A9: Vēl par funkcijām | C9: Prece | D9: Daudzums | F9: Prece | G9: Daudzums
A10: Dodieties uz cilni Formulas un pārlūkojiet funkciju bibliotēku, kurā funkcijas ir uzskaitītas pa kategorijām, piemēram, Teksts, Datums un laiks, utt. Izvēloties Ievietot funkciju, varat meklēt funkcijas pēc nosaukuma un palaist funkciju vedni, kas palīdzēs izveidot formulu. Kad, sākot rakstīt funkcijas nosaukumu, nospiežat taustiņu =, programma Excel palaiž līdzekli Intellisense. Tas uzskaita visas funkcijas, kuras sākas ar jūsu ievadītajiem burtiem. Kad esat atradis vajadzīgo, nospiediet tabulēšanas taustiņu, un programma Excel automātiski pabeigs funkcijas nosaukumu un ievadīs kreiso iekavu. Tiek parādīti arī izvēles un obligātie argumenti. Tagad aplūkosim, kā uzbūvētas dažas funkcijas. Funkcijas SUM uzbūve ir šāda: | C10: Maize | D10: 50 | F10: Maize | G10: 50
A11: Ja funkcija SUM prastu runāt, tā teiktu, atgrieziet visu to vērtību summu, kas atrodama šūnās no D35 līdz D38, kā arī visā kolonnā H. SUM ir funkcijas nosaukums, D35:D38 ir pirmā diapazona arguments, kas gandrīz vienmēr ir obligāti jānorāda, bet H:H ir otrā diapazona arguments, kas ir atdalīts ar komatu. Tagad izmēģināsim funkciju, kurai nav jānorāda argumenti. | C11: Virtuļi | D11: 100 | F11: Virtuļi | G11: 100
A12: Funkcija TODAY atgriež šodienas datumu. Tā automātiski atjauninās, kad programma Excel pārrēķina. | C12: Cepumi | D12: 40 | F12: Cepumi | G12: 40
A13: SKATIET ŠO Atlasiet šīs šūnas. Programmas Excel loga apakšējā labajā stūrī atrodiet SUMMA: 170, kas atrodas apakšējā joslā. To dēvē par statusa joslu. Tas ir tikai vēl viens veids, kā ātri atrast summu un citu detalizētu informāciju par atlasīto šūnu vai diapazonu. | C13: Kūkas | D13: 50 | F13: Kūkas | G13: 50
A14: SVARĪGI Veiciet dubultklikšķi uz šīs šūnas. Jūs pamanīsit 100 beigās. Lai gan ir iespējams ierakstīt skaitļus šādās formulās, mēs to neiesakām, ja vien tas nav pilnībā nepieciešams. Tā tiek dēvēta par konstanti, un ir viegli aizmirst, ka tā ir iekļauta. Tā vietā ieteicams atsaukties uz citu šūnu, piemēram, šūnu F51. Tādējādi to ir viegli redzēt, un tā nav paslēpta formulā. | C14: Pīrāgi | D14: 20 | F14: Pīrāgi | G14: 20
A15: Papildinformācija tīmeklī | C15: SUM > | F15: COUNT >
A16: Viss par funkciju SUM
A17: Automātiskās summēšanas izmantošana skaitļu summēšanai
A18: Viss par funkciju COUNT
A19: Bezmaksas Excel apmācība tiešsaistē
A20: Atpakaļ uz sākumu
A21: Nākamā darbība
C34: Augļi | D34: Daudzums
C35: Āboli | D35: 50
C36: Apelsīni | D36: 20
C37: Banāni | D37: 60
C38: Citroni | D38: 40
C39: SUM > | D39: =SUM(D35:D38) -> 170
C44: Prece | D44: Daudzums
C45: Automašīnas | D45: 20
C46: Kravas automašīnas | D46: 10
C47: Velosipēdi | D47: 10
C48: Skeitborda dēļi | D48: 40
D50: Kopā: | F50: Papildu vērtība | G50: Jaunā kopsumma
D51: =SUM(D45:D48,100) -> 180 | F51: 100 | G51: =SUM(D45:D48,F51) -> 180

Sheet AVERAGE
A1: Funkcija AVERAGE
A2: Lai iegūtu šūnu diapazona skaitļu vidējo vērtību, izmantojiet funkciju AVERAGE. | C2: Augļi | D2: Daudzums | F2: Gaļa | G2: Daudzums
A3: Atlasiet šūnu D7, pēc tam izmantojiet automātiskā summēšana, lai pievienotu funkciju AVERAGE. | C3: Āboli | D3: 50 | F3: Liellopu gaļa | G3: 50
A4: Tagad atlasiet šūnu G7 un ievadiet AVERAGE funkciju, ierakstot =AVERAGE(G3:G6). | C4: Apelsīni | D4: 20 | F4: Vistas gaļa | G4: 30
A5: Šūnā D15 varat izmantot automātiskā summēšana vai rakstot ievadīt citu AVERAGE funkciju. | C5: Banāni | D5: 60 | F5: Cūkgaļa | G5: 10
A6: SKATIET ŠO Atlasiet jebkuru skaitļu diapazonu, un pēc tam statusa joslā uzreiz varat ieraudzīt vidējo vērtību. | C6: Citroni | D6: 40 | F6: Zivis | G6: 50
A7: Aktivizēt iepriekšējo lapu | C7: AVERAGE > | F7: AVERAGE >
A8: Pāriet uz nākamo lapu
A9: PAPILDIESPĒJA Izmēģiniet šeit izmantot funkciju MEDIAN vai MODE. MEDIAN piedāvā vērtību, kas atrodas datu kopas vidū, savukārt MODE piedāvā visbiežāk sastapto vērtību. | C9: Prece | D9: Daudzums | F9: Prece | G9: Daudzums
A10: Saites uz papildinformāciju tīmeklī | C10: Maize | D10: 50 | F10: Maize | G10: 50
A11: Atlasiet, lai tīmeklī uzzinātu visu par funkciju AVERAGE | C11: Virtuļi | D11: 100 | F11: Virtuļi | G11: 100
A12: Atlasiet, lai tīmeklī uzzinātu visu par funkciju MEDIAN | C12: Cepumi | D12: 40 | F12: Cepumi | G12: 40
A13: Atlasiet, lai tīmeklī uzzinātu visu par funkciju MODE | C13: Kūkas | D13: 50 | F13: Kūkas | G13: 50
A14: Atlasiet, lai uzzinātu par Excel bezmaksas apmācību tīmeklī | C14: Pīrāgi | D14: 20 | F14: Pīrāgi | G14: 20
C15: AVERAGE >

Sheet MIN un MAX
A1: Funkcija MIN un MAX
A2: Izmantojiet funkciju MIN, lai iegūtu šūnu diapazona vismazāko skaitli. | C2: Augļi | D2: Daudzums | F2: Gaļa | G2: Daudzums
A3: Izmantojiet funkciju MAX, lai iegūtu šūnu diapazona vislielāko skaitli. | C3: Āboli | D3: 50 | F3: Liellopu gaļa | G3: 50
A4: Atlasiet šūnu D7, pēc tam izmantojiet automātiskās summēšanas vedni, lai pievienotu funkciju MIN. | C4: Apelsīni | D4: 20 | F4: Vistas gaļa | G4: 30
A5: Tagad atlasiet šūnu G7 un ievadiet MAX funkciju, ierakstot =MAX(G3:G6). | C5: Banāni | D5: 60 | F5: Cūkgaļa | G5: 10
A6: Šūnā D15 varat izmantot automātiskās summēšanas vedni vai ierakstot ievadīt MIN vai MAX funkciju. | C6: Citroni | D6: 40 | F6: Zivis | G6: 50
A7: Papildinformācija tīmeklī | C7: MIN > | F7: MAX >
A8: Viss par funkciju MIN
A9: Viss par funkciju MAX | C9: Prece | D9: Daudzums | F9: Prece | G9: Daudzums
A10: Bezmaksas Excel apmācība tiešsaistē | C10: Maize | D10: 50 | F10: Maize | G10: 50
A11: NODERĪGA INFORMĀCIJA Funkciju MIN vai MAX varat izmantot ar vairākiem diapazoniem vai vērtībām, lai parādītu lielāko vai mazāko no šīm vērtībām, piemēram =MIN(A1:A10;B1:B10) vai =MAX(A1:A10;B1), kur B1 satur sliekšņvērtību, piemēram, 10, un šajā gadījumā formula nekad neatgriezīs rezultātu, kas ir mazāks par 10. | C11: Virtuļi | D11: 100 | F11: Virtuļi | G11: 100
C12: Cepumi | D12: 40 | F12: Cepumi | G12: 40
C13: Kūkas | D13: 50 | F13: Kūkas | G13: 50
C14: Pīrāgi | D14: 20 | F14: Pīrāgi | G14: 20
C15: MIN vai MAX > | G15: =MIN(G10:G14,10) -> 10

Sheet Datums un laiks
A1: Datuma funkcijas
A2: Excel var norādīt pašreizējo datumu, ņemot vērā datora reģionālajos iestatījumus. Varat arī saskaitīt un atņemt datumus.
A3: Skatiet funkciju TODAY, kura norāda šodienas datumu. Šīs ir tiešās jeb mainīgās funkcijas, tāpēc, darbgrāmatu atverot rīt, tai būs rītdienas datums. Šūnā D6 ievadiet =TODAY().
A4: Datumu atņemšana — šūnā D7 ievadiet savu nākamo dzimšanas dienu formātā YY\.MM\.DD\. un skatiet, kā Excel aprēķina, cik dienu līdz tai atlicis, šūnā D8 izmantojot formulu =D7-D6.
A5: Datumu saskaitīšana — pieņemsim, ka vēlaties uzzināt, kurā dienā būs jāmaksā rēķins vai kad būs jāatdod bibliotēkas grāmata. Lai to noteiktu, datumam varat pieskaitīt dienas. Šūnā D10 ievadiet nejauši izvēlētu dienu skaitu. Šūnā D11 pievienojām =D6+D10, lai aprēķinātu termiņa datumu no šodienas. | C5: Datuma funkcijas
A6: NODERĪGA INFORMĀCIJA Excel seko datumiem un laikiem, skaitot dienas no 1900. gada 1. janvāra. Laiki tiek fiksēti pa minūtēs sadalītām dienas daļām. Tādējādi 2017.01.01. plkst 12:30 faktiski tiek fiksēts kā 42736,5208. Ja laiks un datums tiek rādīts šādu skaitļu formā, jūs varat nospiest taustiņu kombināciju Ctrl+1 > Skaitlis > atlasiet datums vai laiks formātu. | C6: Šodienas datums: | F6: =IF(D6=TODAY(),"Tieši tā","") -> 
A7: SVARĪGI Ja nevēlaties, lai Excel rādītu negatīvu skaitli, jo neesat vēl ievadījis savu dzimšanas dienu, varat izmantot IF funkciju šādi: =IF(D7=““;“”;D7-D6), kas nozīmē: “JA šūna D7 ir tukša, tad nekas nav jārāda, pretējā gadījumā jārāda D7 mīnus D6”. | C7: Jūsu dzimšanas diena:
A8: Laika funkcijas | C8: Dienas līdz jūsu dzimšanas dienai: | D8: =D7-D6 -> 0
A9: Excel var norādīt pašreizējo laiku, ņemot vērā datora reģionālajos iestatījumus. Varat arī saskaitīt un atņemt laikus. Piemēram, jums jāseko līdzi, cik stundu katru nedēļu strādā darbinieks, lai varētu aprēķināt viņa algu un nostrādātās virsstundas.
A10: Šūnā D28 ievadiet =NOW(), kas norādīs pašreizējo laiku, un atjauninās to ikreiz, kad Excel veiks aprēķinus. Ja ir jāmaina laika formāts, varat doties uz Ctrl+1 > Skaitlis > Laiks > Atlasīt vajadzīgo formātu. | C10: Atvieglotā perioda dienas:
A11: Saskaitiet stundas starp laikiem — šūnā D36 esam ievadījuši =((D35-D32)-(D34-D33))*24, kas aprēķina darbinieka darba sākuma un beigu laiku, bet pēc tam atņem pusdienlaiku. Formulas beigās pievienotais *24 pārvērš stundās Excel izmantoto dienas daļu. Taču šūnai ir jābūt formatētai kā skaitlim. Šajā nolūkā dodieties uz Sākums > Formatēšana > Šūnu formatēšana (Ctrl+1) > Skaitlis > Skaitlis > Decimāldaļas vietas: 2. | C11: Rēķina apmaksas termiņš: | D11: =D6+D10 -> 00:00:00
A12: Ja šī formula pratu runāt, tā teiktu: “Aiziešanas laiku atņemiet no ierašanās laika, pēc tam atņemiet iešanu pusdienās/atnākšanu no pusdienām, pēc tam to reizinot ar 24, lai Excel daļlaiku pārvērstu stundās”, jeb =((Aiziešanas laiks-Ierašanās laiks)-(No pusdienām-Uz pusdienām))*24.
A13: Atpakaļ
A14: Tālāk
A15: Papildinformācija tīmeklī
A16: Viss par funkciju TODAY
A17: Viss par funkciju NOW
A18: Viss par funkciju DATE
A19: Bezmaksas Excel apmācība tiešsaistē
C27: Laika funkcijas
C28: Pašreizējais laiks:
C31: Nostrādātās stundas dienā
C32: Ierašanās laiks: | D32: 08:00:00
C33: Uz pusdienām: | D33: 12:00:00
C34: No pusdienām: | D34: 13:00:00
C35: Aiziešanas laiks: | D35: 17:00:00
C36: Stundu kopskaits: | D36: =((D35-D32)-(D34-D33))*24 -> 8
C45: Statiskais datums un laiks
C46: Datums: | D46: 2017-09-27
C47: Laiks: | D47: 08:52:00

Sheet Teksta un skaitļu savienošana
A1: Dažādu šūnu teksta savienošana
A2: Programmā Excel daudzkārt ir nepieciešams savienot tekstu, kas atrodas dažādās šūnās. Šajā piemērā piedāvāta ļoti bieži sastopama tabula, kurā norādīti vārdi un uzvārdi, kurus jāsakombinē kā vārdu un uzvārdu, kā pilno vārdu vai citādi. Par laimi, programmā Excel to var izdarīt, izmantojot simbolu &, ko varat ievadīt ar taustiņu Shift+7. | C2: Vārds | D2: Uzvārds | E2: Uzvārds, vārds | F2: Pilns vārds
A3: Lai savienotu uzvārdus un vārdus, šūnā E3 ievadiet =D3&C3. | C3: Beatrise | D3: Kļaviņa | E3: =D3&", "&C3 -> Kļaviņa, Beatrise | F3: =C3&" "&D3 -> Beatrise Kļaviņa
A4: KļaviņaBeatrise nav gluži pārskatāmi. Ir jāpievieno komats un atstarpe. Šajā nolūkā izmantosim pēdiņas, lai izveidotu jaunu teksta virkni. Šajā gadījumā ievadiet =D3&“; “&C3. Elements &“; “& veidos komata un atstarpes savienojumu ar šūnu tekstu. | C4: Alfons | D4: Vītols
A5: Lai izveidotu pilnu lietotāja vārdu, savienosim vārdu un uzvārdu, bet izmantosim atstarpi bez komata. Šūnā F3 ievadiet =C3&“ “&D3. | C5: Ilgonis | D5: Purmals
A6: Uz leju, lai uzzinātu vairāk | C6: Daina | D6: Dūmiņa
A7: Tālāk | C7: Sarmis | D7: Saulītis
A8: Teksts un skaitļi kopā | C8: Matiass | D8: Polis
A9: Tagad izmantosim simbolu &, lai savienotu tekstu un skaitļus, ne tikai tekstu un tekstu Aplūkojiet šūnas C28:D29. Vai ievērojat, ka datums un laiks atrodas atsevišķās šūnās? Tās varat savienot ar simbolu &, kā tas redzamas šūnās C32:C33, tomēr nav gluži pareizi, vai ne? Diemžēl programma Excel nezina, kā vēlaties formatēt skaitļus, tāpēc tā skaitļus sadala līdz pat mazākajam formātam, un šajā gadījumā tas ir sērijas datums. Lai iegūtajā teksta virknē formulas skaitliskā daļa tiktu attēlota vajadzīgajā veidā, mums programmai Excel tas ir precīzi jānorāda. Šajā nolūkā varat izmantot funkciju TEXT un formāta kodu. | C9: Raimonds | D9: Turins
A10: Šūnā C36 ievadiet =C28&“ “&TEXT(D28;“YYYY\.MM\.DD\.”). YYYY\.MM\.DD\. ir ASV formāta kods, kas apzīmē Gads.Mēnesis.Diena, piemēram, 2017.09.25. | C10: Izabella | D10: Celma
A11: Šūnā C37 ievadiet =C29&“ “&TEXT(D29;“H:MM“). H:MM ir ASV formāta kods, kas apzīmē: Stundas:Minūtesutes, piemēram, 1:30.
A12: SKATIET ŠO Formulas, jo īpaši lielās, dažkārt var būt grūti izlasīt, taču starp to daļām varat ievietot atstarpes, piemēram, šādi: =C28 & “ “ & TEXT(D28;“YYYY\.MM\.DD\.“)
A13: VĒRTS IZPĒTĪT Ja nezināt, kādu formāta kodu izmantot, šūnu formatēšanai jums vēlamajā veidā izmantojiet Ctrl+1 > Skaitlis. Pēc tam atlasiet opciju Pielāgota. Varat nokopēt formāta kodu, kas tiek norādīts zem formulas.
A14: Papildinformācija tīmeklī
A15: Viss par funkciju TEXT
A16: Teksta un skaitļu kombinēšana
A17: Bezmaksas Excel apmācība tiešsaistē
C27: Teksta un skaitļu izmantošana
C28: Šodienas datums: | D28: =TODAY() -> 2021-10-19
C29: Pašreizējais laiks: | D29: =NOW() -> 44488.69876
C31: Teksta un skaitļu savienošana
C32: =C28&" "&D28 -> Šodienas datums: 44488
C33: =C29&" "&D29 -> Pašreizējais laiks: 44488,6987553241
C35: Teksta un skaitļu formatēšana
C36: =C28 &" "& TEXT(D28,"YYYY\.MM\.DD\.") -> Šodienas datums: 2021.10.19.
C37: =C29&" "&TEXT(D29,"H:MM") -> Pašreizējais laiks: 16:46

Sheet IF priekšraksti
A1: IF priekšraksti
A2: IF priekšraksti sniedz iespēju veikt loģiskus nosacījumu salīdzinājumus. IF priekšraksts norāda — ja viens nosacījums ir patiess, jādara viens, bet pretējā gadījumā jādara kaut kas cits. Formulas var atgriezt tekstu, vērtības vai pat vēl citus aprēķinus.
A3: Šūnā D9 ievadiet =IF(C9=“Ābols”;TRUE;FALSE). Pareizā atbilde ir TRUE.
A4: Šūnu D9 iekopējiet šūnā D10. Atbildei ir jābūt FALSE, jo apelsīns nav ābols.
A5: Izmēģiniet citu piemēru, aplūkojot formulu šūnā D12. Sākumam piedāvājām formulu =IF(C12<100;“Mazāk nekā 100”;“Vairāk nekā vai vienāds ar 100”). Kas notiek, ja šūnā C12 ievada skaitli, kas ir lielāks par 100?
A6: SVARĪGA INFORMĀCIJA TRUE un FALSE ir vārdi Excel formulās, kas atšķirībā no citiem vārdiem netiek likti pēdiņās, turklāt programma Excel tos automātiski raksta ar lielajiem burtiem. Arī skaitļi nav jāliek pēdiņās. Parastais teksts, piemēram, Jā vai Nē ir jāliek pēdiņās šādi: =IF(C9="Ābols";"Jā";"Nē")
A7: Uz leju, lai uzzinātu vairāk
A8: Tālāk | C8: IF priekšraksti
A9: IF priekšraksts ar citu funkciju | C9: Ābols
A10: IF priekšraksti var arī izraisīt papildu aprēķinu izpildi, ja tiek izpildīts noteikts nosacījums. Šeit novērtēsim šūnu, lai redzētu, vai ir jāiekasē PVN nodoklis, un aprēķināsim to, ja nosacījums būs patiess. | C10: Apelsīns
A11: Šūnā F33 mēs ievadījām =IF(E33=“Jā”;F31*PVN;0), kur PVN tiek iestatīts kā nosauktais diapazons ar vērtību 0,0825. Piemēra formulā teikts: ja šūna E33 ir vienāda ar Jā, tad šūna F31 jāreizina ar PVN, pretējā gadījumā atgriež 0. Izmēģiniet šūnā E33 Jā nomainīt ar Nē, un redzēsit, kā mainās aprēķins.
A12: Tālāk esam pievienojuši IF priekšrakstu, lai aprēķinātu piegādes izdevumus, ja nepieciešams aprēķināt nosūtīšanas. Šūnā F35 redzams =IF(E35=“Jā”,SUM(D28:D29)*1,25,0). Tas nozīmē: “Jā šūnā E35 ir Jā, tad summu no tabulas kolonnas Daudzums reiziniet ar 1,25, pretējā gadījumā atgriež 0". | C12: 50 | D12: =IF(C12<100,"Mazāk nekā 100","Vairāk nekā 100 vai vienāds ar 100") -> Mazāk nekā 100
A13: Pēc tam formulā šūnas F35 vērtību 1,25 nomainiet uz “Piegāde”. Kad sākat rakstīt, programma Excel automātiski izlabo kļūdas, ja tādas jums rodas. Kad tiek piedāvāts labojums, nospiediet tabulēšanas taustiņu, lai ievadītu pareizo variantu. Šis ir nosauktais diapazons, un mēs to ievadījām no Formulas > Definēt nosaukumu. Tagad, ja būs jāmaina piegādes izmaksas, tas būs jādara tikai vienā vietā, un jebkur darbgrāmatā varēsit izmantot nosaukumu Piegāde.
A14: NODERĪGA INFORMĀCIJA Kad veidojat formulu, programma Excel formulā ap izmantotajiem diapazoniem automātiski apvelk krāsainu apmali; arī attiecīgie diapazoni formulā ir tajā pašā krāsā. To varat redzēt, atlasot šūnu F33 un nospiežot taustiņu F2, lai formulu rediģētu.
A15: EKSPERTU PADOMS Izmantojot nosauktos diapazonus, varat vienuviet definēt nosacījumus vai vērtības un tās atkārtoti izmantot visā darbgrāmatā. Visus šīs darbgrāmatas nosauktos diapazonus varat skatīt, izmantojot cilni Formulas > Nosaukumu pārvaldnieks. Lai iegūtu papildinformāciju, noklikšķiniet šeit.
A16: Atpakaļ
A17: Tālāk
A18: Papildinformācija tīmeklī
A19: Viss par funkciju IF
A20: Viss par funkciju IFS
A21: Paplašinātie IF priekšraksti
A22: Bezmaksas Excel apmācība tiešsaistē
C27: Prece | D27: Skaits | E27: Cena | F27: Kopā
C28: Piederums | D28: 2 | E28: 9.76 EUR | F28: ='IF priekšraksti'!$E$28:$E$29*'IF priekšraksti'!$D$28:$D$29 -> 19.52 EUR
C29: Ietaise | D29: 3 | E29: 3.42 EUR | F29: ='IF priekšraksti'!$E$28:$E$29*'IF priekšraksti'!$D$28:$D$29 -> 10.26 EUR
D31: Apakšsumma | E31: =SUM('IF priekšraksti'!$E$28:$E$29) -> 13.18 EUR | F31: =SUM('IF priekšraksti'!F28:F29) -> 29.78 EUR
D33: PVN? | E33: Jā | F33: =IF(E33="Jā",F31*PVN,0) -> 2.46 EUR
D35: Piegāde? | E35: Jā | F35: =IF(E35="Jā",SUM(D28:D29)*1.25,0) -> 6.25 EUR
D37: Kopā | F37: =SUM(F33,F31,F35) -> 38.48 EUR

Sheet VLOOKUP
A1: VLOOKUP
A2: VLOOKUP ir viena no visbiežāk izmantotajām programmas Excel funkcijām (un arī viena no mūsu iecienītākajām!). Ar VLOOKUP varat meklēt vērtību kreisajā kolonnā, un, ja tiek atrast atbilstība, informācija tiek atgriezta citā kolonnā pa labi. VLOOKUP ir šāda:
A3: =VLOOKUP(A1;B:C;2;FALSE)
A4: Ko vēlaties meklēt?
A5: Ja meklēto atrodat, cik kolonnas pa labi ir jāuzrāda vērtība?
A6: Kur to vēlaties meklēt?
A7: Vai vēlaties precīzu vai aptuvenu atbilstību?
A8: Šūnā D22 ievadiet =VLOOKUP(C22;C17:D20;2;FALSE). Pareizā atbilde par āboliem ir 50. VLOOKUP meklēja ābolus, atrada, pēc tam pagāja par kolonnu pa labi un atgrieza daudzumu.
A9: Tagad to izmēģiniet sadaļā Gaļa, šūnā G22. Būtu jāsanāk: =VLOOKUP(F22;F17:G20;2;FALSE).
A10: EKSPERIMENTS Izmēģiniet dažādu vienumu atlasīšanu nolaižamajos sarakstos. Redzēsit, kā momentā atjauninās rezultātu šūnas un parāda jaunās vērtības.
A11: Uz leju, lai uzzinātu vairāk
A12: Tālāk
A13: VLOOKUP un #N/A
A14: Neizbēgami rodas situācijas, kad VLOOKUP nevar atrast prasīto, un tā atgriež kļūdu (#N/A). Dažreiz tā notiek, jo uzmeklējamā vērtība vienkārši nepastāv vai atsauces šūnā vēl nav vērtības.
A15: Ja zināt, ka uzmeklējamā vērtība pastāv, bet vēlaties paslēpt kļūdu, ja uzmeklējamā šūna ir tukša, tad varat izmantot IF priekšrakstu. Šādā gadījumā mēs esošo VLOOKUP formulu šūnā D43 iekļaujam šādi: =IF(C43=“”;“”;VLOOKUP(C43;C37:D41;2;FALSE)) Tas nozīmē — ja šūna C43 ir vienāda ar neko (“”), tad nekas nav jāatgriež, pretējā gadījumā ir jāatgriež funkcijas VLOOKUP rezultāti. Pievērsiet uzmanību, ka formulas beigās ir divas labās iekavas. Otrā aizver IF priekšrakstu.
A16: Ja nezināt, vai uzmeklējamā vērtība pastāv, taču vēlaties izvairīties no kļūdas #N/A, tad šūnā G43 varat izmantot kļūdu apstrādes funkciju IFERROR: =IFERROR(VLOOKUP(F43;F37:G41;2;FALSE),“”). IFERROR nozīmē: ja funkcija VLOOKUP atgriež derīgu rezultātu, tad tas ir jārāda, pretējā gadījumā nav jārāda nekas (“”). Piemērā parādām“neko” (“”), bet var arī izmantot ciparus (0,1, 2, utt.) vai tekstu, piemēram, “Formula nav pareiza”. | C16: Augļi | D16: Daudzums | F16: Gaļa | G16: Daudzums
A17: SVARĪGI Funkciju IFERROR uzskata par vispārēju kļūdu apstrādātāju, jo ar to var izvairīties no kļūdu radīšanas, ja formula tādu uzrāda. Tas var izraisīt problēmas, ja Excel parāda paziņojumu, ka formulā ir pamatota kļūda, kas būti jāizlabo. Praktisks ieteikums: formulās nepievienot kļūdu apstrādātājus, ja vien nav pilnīgas pārliecības, ka tiek darbosies pareizi. | C17: Āboli | D17: 50 | F17: Liellopu gaļa | G17: 50
A18: Atpakaļ | C18: Apelsīni | D18: 20 | F18: Vistas gaļa | G18: 30
A19: Tālāk | C19: Banāni | D19: 60 | F19: Cūkgaļa | G19: 10
A20: Papildinformācija tīmeklī | C20: Citroni | D20: 40 | F20: Zivis | G20: 50
A21: Viss par funkciju VLOOKUP
A22: Viss par funkcijām INDEX/MATCH | C22: Āboli | F22: Cūkgaļa
A23: Viss par funkciju IFERROR
A24: Rakurstabulu izmantošana darblapas datu analizēšanai
A25: Bezmaksas Excel apmācība tiešsaistē
C35: Ja funkcija SUM šūnā D42 prastu runāt, tā teiktu: Saskaitiet kopā vērtības šūnās D38, D39, D40 un D41.
C36: Prece | D36: Daudzums | F36: Prece | G36: Daudzums
C37: Maize | D37: 50 | F37: Maize | G37: 50
C38: Virtuļi | D38: 100 | F38: Virtuļi | G38: 100
C39: Cepumi | D39: 40 | F39: Cepumi | G39: 40
C40: Kūkas | D40: 50 | F40: Kūkas | G40: 50
C41: Pīrāgi | D41: 20 | F41: Pīrāgi | G41: 20
D43: =VLOOKUP(C43,C37:D41,2,FALSE) ->  | F43: Konditorejas izstrādājumi | G43: =IFERROR(VLOOKUP(F43,F37:G41,2,FALSE),"") -> 

Sheet Nosacījuma funkcijas
A1: Nosacījuma funkcijas — SUMIF
A2: Ar nosacījuma funkcijām, norādot konkrētu nosacījumu vai kritērijus, varat šūnu diapazonu summēt, atrast tajā vidējo, saskaitīt vai iegūt minimālo vai maksimālo lielumu. Piemēram, cik no visiem sarakstā minētajiem augļiem ir ābolu? Vai cik apelsīnu ir Floridas šķirne? | C2: Augļi | D2: Daudzums | F2: Augļi | G2: Šķirne | H2: Daudzums | Z2: Augļi | AB2: Āboli | AD2: Apelsīni | AF2: Banāni | AH2: Citroni
A3: Ar funkciju SUMIF varat sasummēt vērtību vienā diapazonā, pamatojoties uz konkrētu kritēriju, ko atrodat citā diapazonā, piemēram, varat saskaitīt, cik kopā ir ābolu. Atlasiet šūnu D17 un rakstiet =SUMIF(C3:C14;C17;D3:D14). SUMIF uzbūve ir šāda: | C3: Āboli | D3: 50 | F3: Āboli | G3: Fuji | H3: 50 | Z3: Āboli | AB3: Fuji | AD3: Florida | AF3: Cavendish | AH3: Rough
A4: =SUMIF(C3:C14;C17;D3:D14) | C4: Apelsīni | D4: 20 | F4: Apelsīni | G4: Florida | H4: 20 | Z4: Apelsīni | AB4: Honeycrisp | AD4: Navel | AF4: Lady Finger | AH4: Eureka
A5: Kuru diapazonu vēlaties aplūkot? | C5: Banāni | D5: 60 | F5: Banāni | G5: Cavendish | H5: 60 | Z5: Banāni
A6: Kādu vērtību (tekstu vai skaitli) vēlaties meklēt? | C6: Citroni | D6: 40 | F6: Citroni | G6: Rough | H6: 40 | Z6: Citroni
A7: Par katru atrasto atbilstību — kuru diapazonu vēlaties ieskaitīt | C7: Āboli | D7: 50 | F7: Āboli | G7: Honeycrisp | H7: 50
A8: SUMIFS ir tāda pati kā funkcija SUMIF, taču tajā varat izmantot vairākus kritērijus. Šajā piemērā varat meklēt gan augli, gan šķirni, nevis tikai augli. Atlasiet šūnu H17 un rakstiet =SUMIFS(H3:H14;F3:F14;F17;G3:G14;G17). SUMIFS uzbūve ir šāda: | C8: Apelsīni | D8: 20 | F8: Apelsīni | G8: Navel | H8: 20
A9: =SUMIFS(H3:H14;F3:F14;F17;G3:G14;G17) | C9: Banāni | D9: 60 | F9: Banāni | G9: Lady Finger | H9: 60
A10: Kuru diapazonu vēlaties summēt? | C10: Citroni | D10: 40 | F10: Citroni | G10: Eureka | H10: 40
A11: Šis ir pirmais diapazons, kurā jāmeklē atbilstības | C11: Āboli | D11: 50 | F11: Āboli | G11: Honeycrisp | H11: 50
A12: Šie ir pirmās atbilstības kritēriji | C12: Apelsīni | D12: 20 | F12: Apelsīni | G12: Navel | H12: 20
A13: Šis ir otrais diapazons, kurā jāmeklē atbilstības | C13: Banāni | D13: 60 | F13: Banāni | G13: Cavendish | H13: 60
A14: Šie ir otrās atbilstības kritēriji | C14: Citroni | D14: 40 | F14: Citroni | G14: Eureka | H14: 40
A15: EKSPERTU PADOMS Katrai augļu un šķirnes šūnai ir nolaižamais saraksts, kurā varat atlasīt dažādus augļus. Izmēģiniet to un skatieties, kā formulas automātiski atjauninās.
A16: Uz leju, lai uzzinātu vairāk | C16: Augļi | D16: SUMIF | F16: Augļi | G16: Šķirne | H16: SUMIFS
A17: Nākamā darbība | C17: Āboli | F17: Apelsīni | G17: Florida
A18: Nosacījuma funkcijas — COUNTIF
A19: Ar COUNTIF un COUNTIFS varat saskaitīt vērtības diapazonā, ņemot vērā jūsu izvēlētus kritērijus. Šīs funkcijas nedaudz atšķiras no pārējām IF un IFS funkcijām, jo tām ir tikai kritēriju diapazons un kritēriji. Tās nevērtē vienu diapazonu un pēc tam neskatās otrā, lai apkopotu.
A20: Atlasiet šūnu D64 un rakstiet =COUNTIF(C50:C61;C64). COUNTIF uzbūve ir šāda:
A21: =COUNTIF(C50:C61,C64) -> 3
A22: Kuru diapazonu vēlaties aplūkot?
A23: Kādu vērtību (tekstu vai skaitli) vēlaties meklēt?
A24: COUNTIFS ir tāda pati kā funkcija SUMIF, taču tajā varat izmantot vairākus kritērijus. Šajā piemērā varat meklēt gan augli, gan šķirni, nevis tikai augli. Atlasiet šūnu H64 un rakstiet =COUNTIFS(F50:F61;F64;G50:G61;G64). COUNTIFS uzbūve ir šāda:
A25: =COUNTIFS(F50:F61,F64,G50:G61,G64) -> 1
A26: Šis ir pirmais diapazons skaitīšanai
A27: Šie ir pirmās atbilstības kritēriji
A28: Šis ir otrais diapazons skaitīšanai
A29: Šis ir otrās atbilstības kritērijs
A30: Uz leju, lai uzzinātu vairāk
A31: Tālāk
A32: Citas nosacījuma funkcijas
A33: Jau esam aplūkojuši SUMIF, SUMIFS, COUNTIF un COUNTIFS. Tagad varat patstāvīgi izmēģināt darbu ar pārējām funkcijām, piemēram, AVERAGEIF/S, MAXIFS, MINIFS. Tām ir līdzīga uzbūve, tāpēc, tiklīdz viena formula ir uzrakstīta, funkcijas vārdu varat vienkārši aizstāt ar vajadzīgo. Esam uzrakstījuši visas funkcijas, kas nepieciešamas šūnai E106, tāpēc tās varat kopēt un ielīmēt vai vingrināšanās nolūkā rakstīt tās pats. SUMIF =SUMIF(C92:C103;C106;E92:E103) SUMIFS =SUMIFS(E92:E103;C92:C103;C106;D92:D103;D106) AVERAGEIF =AVERAGEIF(C92:C103;C106;E92:E103) AVERAGEIFS =AVERAGEIFS(E92:E103;C92:C103;C106;D92:D103;D106) COUNTIF =COUNTIF(C92:C103;C106) COUNTIFS =COUNTIFS(C92:C103;C106;D92:D103;D106) MAXIFS =MAXIFS(E92:E103;C92:C103;C106;D92:D103;D106) MINIFS =MINIFS(E92:E103;C92:C103;C106;D92:D103;D106)
A34: Uz leju, lai uzzinātu vairāk
A35: Tālāk
A36: SUMIF ar vērtības argumentu
A37: Lūk, funkcijas SUMIF piemērs, izmantojot “lielāks par” (>), lai atrastu visas vērtības, kas lielākas par noteikto daudzumu:
A38: =SUMIF(D118:D122,">=50") -> 200
A39: Saskaitiet dažas vērtības, pamatojoties uz šo kritēriju:
A40: ...Pārskatiet šīs šūnas...
A41: ... un, ja vērtība ir lielāka par 50, saskaitiet to.
A42: PIEZĪME. Ja jums ir jāveido daudz nosacījumformulu, iespējams, ka rakurstabula (PivotTable) ir piemērotāks risinājums. Papildinformāciju skatiet rakstā par rakurstabulām.
A43: Papildinformācija tīmeklī
A44: Viss par funkciju SUMIF
A45: Viss par funkciju SUMIFS
A46: Viss par funkciju COUNTIF
A47: Viss par funkciju COUNTIFS
A48: Viss par funkciju AVERAGEIF
A49: Viss par funkciju AVERAGEIFS | C49: Augļi | D49: Daudzums | F49: Augļi | G49: Šķirne | H49: Daudzums
A50: Viss par funkciju MINIFS | C50: Āboli | D50: 50 | F50: Āboli | G50: Fuji | H50: 50
A51: Viss par funkciju MAXIFS | C51: Apelsīni | D51: 20 | F51: Apelsīni | G51: Florida | H51: 20
A52: Izveidojiet nolaižamo sarakstu | C52: Banāni | D52: 60 | F52: Banāni | G52: Cavendish | H52: 60
A53: Bezmaksas Excel apmācība tiešsaistē | C53: Citroni | D53: 40 | F53: Citroni | G53: Rough | H53: 40
A54: Atpakaļ uz sākumu | C54: Āboli | D54: 50 | F54: Āboli | G54: Honeycrisp | H54: 50
A55: Tālāk | C55: Apelsīni | D55: 20 | F55: Apelsīni | G55: Navel | H55: 20
C56: Banāni | D56: 60 | F56: Banāni | G56: Lady Finger | H56: 60
C57: Citroni | D57: 40 | F57: Citroni | G57: Eureka | H57: 40
C58: Āboli | D58: 50 | F58: Āboli | G58: Honeycrisp | H58: 50
C59: Apelsīni | D59: 20 | F59: Apelsīni | G59: Navel | H59: 20
C60: Banāni | D60: 60 | F60: Banāni | G60: Cavendish | H60: 60
C61: Citroni | D61: 40 | F61: Citroni | G61: Eureka | H61: 40
C63: Augļi | D63: COUNTIF | F63: Augļi | G63: Šķirne | H63: COUNTIFS
C64: Āboli | D64: =COUNTIF(C50:C61,C64) -> 3 | F64: Apelsīni | G64: Florida | H64: =COUNTIFS(F50:F61,F64,G50:G61,G64) -> 1
C91: Augļi | D91: Šķirne | E91: Daudzums
C92: Āboli | D92: Fuji | E92: 50
C93: Apelsīni | D93: Florida | E93: 20
C94: Banāni | D94: Cavendish | E94: 60
C95: Citroni | D95: Rough | E95: 40
C96: Āboli | D96: Honeycrisp | E96: 50
C97: Apelsīni | D97: Navel | E97: 20
C98: Banāni | D98: Lady Finger | E98: 60
C99: Citroni | D99: Eureka | E99: 40
C100: Āboli | D100: Honeycrisp | E100: 50
C101: Apelsīni | D101: Navel | E101: 20
C102: Banāni | D102: Cavendish | E102: 60
C103: Citroni | D103: Eureka | E103: 40
C105: Augļi | D105: Šķirne | E105: Izmēģiniet to
C106: Citroni | D106: Eureka | E106: =AVERAGEIFS(E92:E103,C92:C103,C106,D92:D103,D106) -> 40
C117: Prece | D117: Daudzums
C118: Maize | D118: 50
C119: Virtuļi | D119: 100
C120: Cepumi | D120: 40
C121: Kūkas | D121: 50
C122: Pīrāgi | D122: 20
D123: =SUMIF(D118:D122,">=50") -> 200

Sheet Funkciju vednis
A1: Sekojiet funkciju vedņa norādēm
A2: Ja zināt vajadzīgās funkcijas nosaukumu, bet nezināt, kā to izveidot, jums var palīdzēt funkciju vednis.
A3: Atlasiet šūnu D10, pēc tam dodieties uz Formulas > Ievietot funkciju > lodziņā Meklējiet funkciju ierakstiet VLOOKUP un noklikšķiniet uz pogas Aiziet!. Kad redzama iezīmēta funkcija VLOOKUP, apakšā noklikšķiniet uz Labi. Sarakstā atlasot funkciju, programma Excel parāda tās sintaksi.
A4: Pēc tam ievadiet funkcijas argumentus attiecīgajos tekstlodziņos. Ievadot katru argumentu, programma Excel to novērtē un parāda tā rezultātu, un galarezultāts ir redzams apakšdaļā. Ievadot informāciju sadaļās, katra argumenta kritērijs tiek norādīts formas apakšā. Kad ievadīšana pabeigta, noklikšķiniet uz Labi, un programma Excel ievadīs formulu jūsu vietā. | C4: Augļi | D4: Daudzums
A5: SKATIET ŠO Beigās būtu jāiegūst: =VLOOKUP(C10;C5:D8;2;FALSE) | C5: Āboli | D5: 50
A6: NODERĪGA INFORMĀCIJA Šūnu un diapazonu atsauces varat ierakstīt vai atlasīt, izmantojot peli. | C6: Apelsīni | D6: 20
A7: NODERĪGA INFORMĀCIJA Ievadot informāciju katra argumenta sadaļā, argumenta apraksts tiek rādīts zemāk formā virs formulas rezultāta. | C7: Banāni | D7: 60
A8: Atpakaļ | C8: Citroni | D8: 40
A9: Tālāk
A10: Papildinformācija tīmeklī | C10: Āboli | D10: =VLOOKUP(C10,C5:D8,2,FALSE) -> 50
A11: Programmas Excel formulu apskats
A12: Excel funkcijas (pa kategorijām)
A13: Excel funkcijas (alfabēta secībā)
A14: Bezmaksas Excel apmācība tiešsaistē

Sheet Formulu kļūdas
A1: Formulu kļūdu labošana
A2: Var gadīties, ka formulā ir kļūda, un programma Excel rāda šādi: #ErrorName. Kļūdas var būt noderīgas, jo tās norāda, ka kaut kas nedarbojas pareizi, taču tās var būt sarežģīti izlabot. Par laimi, ir vairākas iespējas, kas palīdz atrast kļūdas avotu un kļūdu izlabot.
A3: Kļūdu pārbaude — dodieties uz Formulas > Kļūdu pārbaude. Tiek ielādēts dialoglodziņš, kurā ir izklāstīts jūsu kļūdas cēlonis. Šūnā D9 kļūdas #N/A iemesls ir tas, ka nav vērtības, kas atbilstu “Ābols”. Kļūdu varat izlabot, izmantojot esošu vērtību, izvairoties no kļūdas ar funkcijas IFERROR palīdzību vai to ignorējot un zinot, ka tā pazudīs, kad izmantosit esošu vērtību. | C3: Augļi | D3: Daudzums
A4: Ja noklikšķināt uz Palīdzība par šo kļūdu, tiek atvērta palīdzības tēma, kas attiecas uz kļūdas ziņojumu. Ja noklikšķināt uz Rādīt aprēķina soļus, tiek atvērts formulas novērtēšanas dialoglodziņš. | C4: Āboli | D4: 50
A5: Ikreiz, kad noklikšķināt uz Novērtēt, programma Excel pārskata formulu pa vienai sadaļai. Ne vienmēr tā nosaka, kāpēc kļūda radusies, taču norāda kļūdas vietu. Tad varat skatīt palīdzības tēmu, lai secinātu, kas formulā ir nepareizi. | C5: Apelsīni | D5: 20
A6: EKSPERIMENTS Kas šeit ir nepareizi? Norāde: mēs cenšamies sasummēt (SUM) visus vienumus. | C6: Banāni | D6: 60
A7: NODERĪGA INFORMĀCIJA Noklikšķinot uz Opcijas, varat iestatīt kārtulas, kas nosaka, kad programmā Excel kļūdas tiek rādītas vai ignorētas. | C7: Citroni | D7: 40
A8: Atpakaļ
A9: Tālāk | C9: Ābols | D9: =VLOOKUP(C9,C3:D7,2,FALSE) -> 
A10: Papildinformācija tīmeklī
A11: Kļūdu noteikšana formulās
A12: Kā nepieļaut bojātas formulas
A13: Novērtējiet ligzdotu formulu soli pa solim
A14: Bezmaksas Excel apmācība tiešsaistē
C30: Augļi | D30: Daudzums
C31: Āboli | D31: 50
C32: Apelsīni | D32: 20
C33: Banāni | D33: 60
C34: Citroni | D34: 40
C36: Kopā | D36: =sume(D31:D34) -> 

Sheet Papildinformācija
A1: Vai jums ir citi jautājumi par Excel?
A2: Nospiediet taustiņu kombināciju ALT+Ē un ierakstiet, ko vēlaties uzzināt.
A3: LinkedIn Learning. Video kursi visiem līmeņiem — no iesācēja līdz pieredzējušam lietotājam. Apgūstiet savā tempā.
A4: Kopiena. Uzdodiet jautājumus un sazinieties ar citiem Excel entuziastiem.
A5: Kādi vēl ir jaunumi? Office 365 abonenti pastāvīgi saņem atjauninājumus un jaunus līdzekļus.
